[Event "Portugal Open 2020"]
[Site "Lisbon"]
[Date "2020.01.26"]
[Round "2.27"]
[White "Sarkar, Justin"]
[Black "Chennaoui, Yasin"]
[Result "1-0"]
[ECO "D53"]
[WhiteElo "2385"]
[BlackElo "2093"]
[Annotator "NA"]
[PlyCount "135"]
[EventDate "2020.01.25"]
[EventType "swiss"]
[EventCountry "POR"]
[SourceTitle "playchess.com"]
[Source "ChessBase"]
[SourceQuality "1"]
[TimeControl "5400+30"]

1. d4 {[%emt 0:23:18]} Nf6 {[%emt 0:00:00]} 2. c4 {[%emt 0:00:08]} e6 {[%emt 0:00:00]} 3. Nc3 {[%emt 0:00:15]} d5 {[%emt 0:00:00]} 4. Bg5 {[%emt 0:02:27]} Be7 {[%emt 0:00:00]} 5. e3 {[%emt 0:00:22]} Nbd7 {[%emt 0:00:55]} 6. Nf3 {[%emt 0:01:41]} h6 {[%emt 0:00:48]} 7. Bh4 {[%emt 0:00:12]} dxc4 {[%emt 0:05:29]} 8. Bxc4 {[%emt 0:00:27]} a6 {[%emt 0:00:07]} 9. a4 {[%emt 0:05:09]} c5 {[%emt 0:00:15]} 10. O-O {[%emt 0:01:04]} cxd4 {[%emt 0:13:43]} 11. exd4 {[%emt 0:02:22]} O-O {[%emt 0:06:42]} 12. Qe2 {[%emt 0:12:39]} Nb6 {[%emt 0:08:15]} 13. Bb3 {[%emt 0:01:35]} Nbd5 {[%emt 0:01:34]} 14. Ne5 {[%emt 0:01:32]} Nxc3 {[%emt 0:09:25]} 15. bxc3 {[%emt 0:00:05]} Nd5 {[%emt 0:00:07]} 16. Bxe7 {[%emt 0:00:23]} Qxe7 {[%emt 0:03:02]} 17. Ng6 {[%emt 0:04:59]} fxg6 {[%emt 0:00:22]} 18. Bxd5 {[%emt 0:00:03]} Qc7 {[%emt 0:03:23]} 19. Bxe6+ {[%emt 0:03:36]} Kh7 {[%emt 0:01:49]} 20. Qc4 {[%emt 0:03:20]} Qf4 {[%emt 0:09:16]} 21. Bd5 {[%emt 0:04:47]} b5 {[%emt 0:01:06]} 22. Qc5 {[%emt 0:08:04]} Rb8 {[%emt 0:00:33]} 23. Bc6 {[%emt 0:02:46]} Bg4 {[%emt 0:08:20]} 24. axb5 {[%emt 0:04:54]} axb5 {[%emt 0:02:52]} 25. d5 {[%emt 0:04:16]} b4 {[%emt 0:12:51]} 26. cxb4 {[%emt 0:00:13]} Qxb4 {[%emt 0:00:17]} 27. Qxb4 {[%emt 0:00:30]} Rxb4 {[%emt 0:00:02]} 28. f3 {[%emt 0:00:18]} Bf5 {[%emt 0:01:03]} 29. Ra7 {[%emt 0:02:02]} Kg8 {[%emt 0:02:24]} 30. Re1 {[%emt 0:01:18]} Rb1 {[%emt 0:00:50]} 31. Rxb1 {[%emt 0:01:08]} Bxb1 {[%emt 0:00:02]} 32. Kf2 {[%emt 0:00:58]} Rf7 {[%emt 0:00:10]} 33. Ra8+ {[%emt 0:00:06]} Rf8 {[%emt 0:00:05]} 34. Ra7 {[%emt 0:04:54]} Rf7 {[%emt 0:00:07]} 35. Ra1 {[%emt 0:00:02]} Bf5 {[%emt 0:03:12]} 36. Ke3 {[%emt 0:00:05]} Re7+ {[%emt 0:02:05]} 37. Kd4 {[%emt 0:00:12]} Kf7 {[%emt 0:00:08]} 38. g4 {[%emt 0:02:01]} Bc8 {[%emt 0:01:45]} 39. d6 {[%emt 0:03:04]} Re2 {[%emt 0:00:23]} 40. Ra7+ {[%emt 0:00:56]} Kf6 {[%emt 0:00:10]} 41. d7 {[%emt 0:00:41]} Bxd7 {[%emt 0:00:22]} 42. Rxd7 {[%emt 0:00:03]} Rxh2 {[%emt 0:00:41]} 43. f4 {[%emt 0:01:44]} g5 {[%emt 0:03:28]} 44. fxg5+ {[%emt 0:00:23]} hxg5 {[%emt 0:00:51]} 45. Ke3 {[%emt 0:00:38]} Rh3+ {[%emt 0:01:00]} 46. Bf3 {[%emt 0:00:20]} Kg6 {[%emt 0:02:17]} 47. Rd6+ {[%emt 0:00:32]} Kh7 {[%emt 0:00:13]} 48. Rd1 {[%emt 0:00:17]} Kh6 {[%emt 0:00:18]} 49. Rh1 {[%emt 0:00:19]} Rxh1 {[%emt 0:00:09]} 50. Bxh1 {[%emt 0:00:01]} Kg6 {[%emt 0:00:12]} 51. Kd4 {[%emt 0:00:04]} Kh7 {[%emt 0:00:08]} 52. Ke5 {[%emt 0:00:08]} Kg8 {[%emt 0:00:06]} 53. Kf5 {[%emt 0:00:14]} Kh7 {[%emt 0:00:06]} 54. Bd5 {[%emt 0:00:29]} Kh8 {[%emt 0:00:11]} 55. Kxg5 {[%emt 0:00:29]} Kh7 {[%emt 0:00:06]} 56. Kf5 {[%emt 0:00:49]} Kh8 {[%emt 0:00:06]} 57. Bf7 {[%emt 0:01:24]} Kh7 {[%emt 0:00:06]} 58. g5 {[%emt 0:00:31]} Kh8 {[%emt 0:00:05]} 59. Ke6 {[%emt 0:00:06]} Kh7 {[%emt 0:00:05]} 60. Ke7 {[%emt 0:00:04]} Kh8 {[%emt 0:00:09]} 61. Bg6 {[%emt 0:00:10]} Kg8 {[%emt 0:00:06]} 62. Bf5 {[%emt 0:00:19]} Kh8 {[%emt 0:00:05]} 63. Kf7 {[%emt 0:00:11]} g6 {[%emt 0:00:16]} 64. Kxg6 {[%emt 0:00:08]} Kg8 {[%emt 0:00:05]} 65. Kf6 {[%emt 0:00:07]} Kh8 {[%emt 0:00:07]} 66. g6 {[%emt 0:00:08]} Kg8 {[%emt 0:00:04]} 67. Be6+ {[%emt 0:00:04]} Kh8 {[%emt 0:00:04]} 68. g7+ {[%emt 0:00:09]} 1-0

[Event "Portugal Open 2020"]
[Site "Lisbon"]
[Date "2020.01.26"]
[Round "2.28"]
[White "Casagrande, Federico"]
[Black "Bashirli, Nail"]
[Result "0-1"]
[ECO "E15"]
[WhiteElo "1999"]
[BlackElo "2379"]
[Annotator "NA"]
[PlyCount "75"]
[EventDate "2020.01.25"]
[EventType "swiss"]
[EventCountry "POR"]
[SourceTitle "playchess.com"]
[Source "ChessBase"]
[SourceQuality "1"]
[TimeControl "5400+30"]

1. d4 {[%emt 0:01:58]} Nf6 {[%emt 0:00:00]} 2. c4 {[%emt 0:00:05]} e6 {[%emt 0:00:00]} 3. Nf3 {[%emt 0:00:24]} b6 {[%emt 0:00:15]} 4. g3 {[%emt 0:00:28]} Ba6 {[%emt 0:00:07]} 5. Qc2 {[%emt 0:00:23]} d5 {[%emt 0:01:23]} 6. Nbd2 {[%emt 0:01:57]} Be7 {[%emt 0:02:17]} 7. Bg2 {[%emt 0:00:40]} O-O {[%emt 0:00:10]} 8. O-O {[%emt 0:03:50]} c5 {[%emt 0:03:38]} 9. b3 {[%emt 0:05:44]} Nc6 {[%emt 0:05:16]} 10. dxc5 {[%emt 0:12:04]} bxc5 {[%emt 0:02:21]} 11. Bb2 {[%emt 0:05:55]} d4 {[%emt 0:01:40]} 12. Ne1 {[%emt 0:12:51]} Bb7 {[%emt 0:02:48]} 13. Nd3 {[%emt 0:01:03]} a5 {[%emt 0:02:00]} 14. Ba3 {[%emt 0:04:10]} Qb6 {[%emt 0:01:07]} 15. Nf3 {[%emt 0:06:22]} Nb4 {[%emt 0:01:41]} 16. Bxb4 {[%emt 0:02:05]} axb4 {[%emt 0:00:45]} 17. Nfe5 {[%emt 0:03:26]} Bxg2 {[%emt 0:00:51]} 18. Kxg2 {[%emt 0:00:32]} Qb7+ {[%emt 0:00:21]} 19. f3 {[%emt 0:01:37]} Bd6 {[%emt 0:02:02]} 20. h3 {[%emt 0:08:43]} Qc7 {[%emt 0:00:52]} 21. Ng4 {[%emt 0:01:14]} Nd7 {[%emt 0:02:10]} 22. f4 {[%emt 0:01:18]} f5 {[%emt 0:00:26]} 23. Nh2 {[%emt 0:01:19]} Qc6+ {[%emt 0:03:04]} 24. Nf3 {[%emt 0:04:14]} Nf6 {[%emt 0:01:16]} 25. Kh2 {[%emt 0:02:07]} Ne4 {[%emt 0:01:05]} 26. Nfe5 {[%emt 0:00:55]} Qc7 {[%emt 0:00:03]} 27. Rfe1 {[%emt 0:03:36]} Rfd8 {[%emt 0:01:01]} 28. Qb2 {[%emt 0:02:00]} Ra3 {[%emt 0:00:58]} 29. Rac1 {[%emt 0:03:44]} Rda8 {[%emt 0:00:43]} 30. Rc2 {[%emt 0:01:23]} Nc3 {[%emt 0:00:01]} 31. Ra1 {[%emt 0:00:47]} Qb7 {[%emt 0:00:31]} 32. h4 {[%emt 0:02:35]} Qe4 {[%emt 0:01:39]} 33. Rd2 {[%emt 0:04:01]} h6 {[%emt 0:00:17]} 34. h5 {[%emt 0:00:17]} Qe3 {[%emt 0:00:50]} 35. Rc2 {[%emt 0:01:39]} Bxe5 {[%emt 0:00:16]} 36. Nxe5 {[%emt 0:00:51]} Qf2+ {[%emt 0:00:03]} 37. Kh1 {[%emt 0:00:44]} Qxf4 38. gxf4 0-1

[Event "Portugal Open 2020"]
[Site "Lisbon"]
[Date "2020.01.26"]
[Round "2.29"]
[White "Loeffler, Stefan"]
[Black "Marzano, Carlo"]
[Result "0-1"]
[ECO "A20"]
[WhiteElo "2376"]
[BlackElo "2078"]
[Annotator "NA"]
[PlyCount "80"]
[EventDate "2020.01.25"]
[EventType "swiss"]
[EventCountry "POR"]
[SourceTitle "playchess.com"]
[Source "ChessBase"]
[SourceQuality "1"]
[TimeControl "5400+30"]

1. c4 {[%emt 0:01:47]} e5 {[%emt 0:00:00]} 2. g3 {[%emt 0:00:04]} Nf6 {[%emt 0:00:00]} 3. Bg2 {[%emt 0:00:04]} Nc6 {[%emt 0:00:00]} 4. Nc3 {[%emt 0:00:36]} Bc5 {[%emt 0:00:21]} 5. e3 {[%emt 0:02:18]} d5 {[%emt 0:00:14]} 6. cxd5 {[%emt 0:11:14]} Nb4 {[%emt 0:00:11]} 7. d3 {[%emt 0:00:11]} c6 {[%emt 0:02:01]} 8. Nf3 {[%emt 0:02:13]} Bg4 {[%emt 0:00:20]} 9. O-O {[%emt 0:05:46]} Nbxd5 {[%emt 0:11:32]} 10. Qb3 {[%emt 0:04:23]} Bxf3 {[%emt 0:02:59]} 11. Bxf3 {[%emt 0:01:36]} Qd7 {[%emt 0:01:03]} 12. Nxd5 {[%emt 0:33:13]} Nxd5 {[%emt 0:00:51]} 13. Qc4 {[%emt 0:01:49]} Be7 {[%emt 0:16:00]} 14. b3 {[%emt 0:01:09]} O-O {[%emt 0:07:13]} 15. Bb2 {[%emt 0:00:04]} Nb6 {[%emt 0:02:35]} 16. Qc2 {[%emt 0:01:07]} Qe6 {[%emt 0:02:18]} 17. Rad1 {[%emt 0:01:54]} f5 {[%emt 0:02:24]} 18. Rfe1 {[%emt 0:02:34]} Rae8 {[%emt 0:04:31]} 19. Bg2 {[%emt 0:04:44]} Bd6 {[%emt 0:06:37]} 20. a3 {[%emt 0:08:50]} Kh8 {[%emt 0:01:05]} 21. Qc3 {[%emt 0:01:59]} Nd5 {[%emt 0:14:05]} 22. Qc4 {[%emt 0:02:00]} Nb6 {[%emt 0:02:58]} 23. Qxe6 {[%emt 0:03:10]} Rxe6 {[%emt 0:00:02]} 24. f4 {[%emt 0:01:34]} Rfe8 {[%emt 0:00:58]} 25. Kf2 {[%emt 0:01:04]} Kg8 {[%emt 0:02:28]} 26. b4 {[%emt 0:00:29]} a6 {[%emt 0:00:51]} 27. Bf3 {[%emt 0:02:28]} g6 {[%emt 0:02:40]} 28. h4 {[%emt 0:01:06]} h5 {[%emt 0:00:21]} 29. Bc1 {[%emt 0:02:47]} Nd7 {[%emt 0:05:15]} 30. e4 {[%emt 0:00:10]} exf4 {[%emt 0:00:28]} 31. gxf4 {[%emt 0:00:29]} Be7 {[%emt 0:05:57]} 32. Kg3 {[%emt 0:00:02]} Bf6 {[%emt 0:00:07]} 33. Bd2 {[%emt 0:02:00]} fxe4 {[%emt 0:00:49]} 34. dxe4 {[%emt 0:00:02]} Nb6 {[%emt 0:01:54]} 35. e5 {[%emt 0:00:45]} Bg7 {[%emt 0:00:57]} 36. Bc3 {[%emt 0:00:16]} Kh7 {[%emt 0:01:24]} 37. Rd3 {[%emt 0:01:12]} Nc8 {[%emt 0:00:55]} 38. Rd7 {[%emt 0:00:23]} R6e7 {[%emt 0:00:52]} 39. Red1 {[%emt 0:00:15]} Nb6 {[%emt 0:00:13]} 40. Rxe7 {[%emt 0:01:28]} Rxe7 {[%emt 0:00:01]} 0-1

[Event "Portugal Open 2020"]
[Site "Lisbon"]
[Date "2020.01.26"]
[Round "2.30"]
[White "Gonzalez Trigal, Jose Luis"]
[Black "Maric, Boris"]
[Result "1/2-1/2"]
[ECO "E21"]
[WhiteElo "2369"]
[BlackElo "2034"]
[Annotator "NA"]
[PlyCount "100"]
[EventDate "2020.01.25"]
[EventType "swiss"]
[EventCountry "POR"]
[SourceTitle "playchess.com"]
[Source "ChessBase"]
[SourceQuality "1"]
[TimeControl "5400+30"]

1. d4 {[%emt 0:00:00]} Nf6 {[%emt 0:00:00]} 2. c4 {[%emt 0:00:00]} e6 {[%emt 0:00:00]} 3. Nf3 {[%emt 0:00:12]} b6 {[%emt 0:00:00]} 4. Nc3 {[%emt 0:01:01]} Bb4 {[%emt 0:00:09]} 5. Qc2 {[%emt 0:00:08]} Bb7 {[%emt 0:03:05]} 6. a3 {[%emt 0:00:16]} Bxc3+ {[%emt 0:00:22]} 7. Qxc3 {[%emt 0:00:07]} Ne4 {[%emt 0:06:50]} 8. Qc2 {[%emt 0:00:10]} d5 {[%emt 0:01:07]} 9. g3 {[%emt 0:02:14]} O-O {[%emt 0:00:16]} 10. Bg2 {[%emt 0:00:10]} Nd7 {[%emt 0:01:18]} 11. O-O {[%emt 0:01:59]} c5 {[%emt 0:02:54]} 12. dxc5 {[%emt 0:03:45]} Rc8 {[%emt 0:05:35]} 13. b4 {[%emt 0:06:36]} bxc5 {[%emt 0:00:18]} 14. b5 {[%emt 0:00:28]} Nb6 {[%emt 0:04:30]} 15. cxd5 {[%emt 0:18:45]} exd5 {[%emt 0:09:23]} 16. Rd1 {[%emt 0:10:44]} Qe7 {[%emt 0:04:46]} 17. e3 {[%emt 0:07:43]} Rcd8 {[%emt 0:07:57]} 18. Ne1 {[%emt 0:04:56]} Rfe8 {[%emt 0:03:29]} 19. Nd3 {[%emt 0:01:29]} h5 {[%emt 0:08:58]} 20. Rb1 {[%emt 0:17:07]} Nc4 {[%emt 0:05:50]} 21. Nf4 {[%emt 0:04:10]} h4 {[%emt 0:01:19]} 22. Bb2 {[%emt 0:02:01]} Nxb2 {[%emt 0:01:24]} 23. Qxb2 {[%emt 0:00:02]} Rd6 {[%emt 0:05:20]} 24. Rd3 {[%emt 0:05:57]} Red8 {[%emt 0:03:35]} 25. Rbd1 {[%emt 0:00:19]} d4 {[%emt 0:06:26]} 26. exd4 {[%emt 0:01:18]} Qf6 {[%emt 0:01:17]} 27. Re1 {[%emt 0:03:19]} Rxd4 {[%emt 0:02:18]} 28. Rde3 {[%emt 0:01:14]} Nd6 {[%emt 0:04:04]} 29. Bxb7 {[%emt 0:02:09]} Nxb7 {[%emt 0:00:03]} 30. Qc2 {[%emt 0:00:22]} g6 {[%emt 0:01:01]} 31. Re7 {[%emt 0:04:02]} Rd2 {[%emt 0:01:47]} 32. Qe4 {[%emt 0:00:24]} Nd6 {[%emt 0:02:36]} 33. Qe3 {[%emt 0:01:01]} Nf5 {[%emt 0:04:23]} 34. Re8+ {[%emt 0:00:06]} Rxe8 {[%emt 0:00:12]} 35. Qxe8+ {[%emt 0:00:02]} Kg7 {[%emt 0:00:26]} 36. Qe5 {[%emt 0:02:56]} Nd4 {[%emt 0:01:44]} 37. Kg2 {[%emt 0:00:22]} Nxb5 {[%emt 0:01:59]} 38. Qxc5 {[%emt 0:00:23]} Qd4 {[%emt 0:00:58]} 39. Qxd4+ {[%emt 0:00:49]} Rxd4 {[%emt 0:00:05]} 40. Re3 {[%emt 0:00:27]} Ra4 {[%emt 0:00:19]} 41. Rb3 {[%emt 0:00:24]} a6 {[%emt 0:00:15]} 42. Rd3 {[%emt 0:00:31]} Rxa3 {[%emt 0:00:48]} 43. Rd7 {[%emt 0:00:02]} hxg3 {[%emt 0:00:27]} 44. hxg3 {[%emt 0:00:02]} Rc3 {[%emt 0:00:54]} 45. Ne6+ {[%emt 0:00:55]} Kf6 {[%emt 0:00:32]} 46. Nf4 {[%emt 0:00:02]} Rc6 {[%emt 0:01:19]} 47. Rb7 {[%emt 0:00:23]} g5 {[%emt 0:00:26]} 48. Nd5+ {[%emt 0:00:28]} Ke6 {[%emt 0:00:12]} 49. Nb4 {[%emt 0:00:29]} Rd6 {[%emt 0:00:20]} 50. Nxa6 {[%emt 0:00:19]} Rxa6 {[%emt 0:00:25]} 1/2-1/2

[Event "Portugal Open 2020"]
[Site "Lisbon"]
[Date "2020.01.26"]
[Round "2.32"]
[White "Soham Das"]
[Black "Sismeiro, Miguel"]
[Result "1-0"]
[ECO "A45"]
[WhiteElo "2355"]
[BlackElo "2026"]
[Annotator "NA"]
[PlyCount "39"]
[EventDate "2020.01.25"]
[EventType "swiss"]
[EventCountry "POR"]
[SourceTitle "playchess.com"]
[Source "ChessBase"]
[SourceQuality "1"]
[TimeControl "5400+30"]

1. d4 {[%emt 0:03:50]} Nf6 {[%emt 0:03:40]} 2. Bf4 {[%emt 0:00:35]} d5 {[%emt 0:01:15]} 3. e3 {[%emt 0:00:36]} c5 {[%emt 0:00:08]} 4. c3 {[%emt 0:00:41]} e6 {[%emt 0:00:06]} 5. Nd2 {[%emt 0:00:28]} Bd6 {[%emt 0:02:12]} 6. Bg3 {[%emt 0:00:25]} Qc7 {[%emt 0:00:08]} 7. Bd3 {[%emt 0:11:02]} Nbd7 {[%emt 0:02:48]} 8. f4 {[%emt 0:03:12]} b6 {[%emt 0:21:41]} 9. Ngf3 {[%emt 0:02:13]} Bb7 {[%emt 0:04:29]} 10. Ne5 {[%emt 0:07:50]} O-O {[%emt 0:01:37]} 11. Qf3 {[%emt 0:02:24]} a5 {[%emt 0:32:01]} 12. Bh4 {[%emt 0:06:00]} Ba6 {[%emt 0:02:04]} 13. Bc2 {[%emt 0:00:17]} b5 {[%emt 0:01:56]} 14. Qh3 {[%emt 0:01:05]} g6 {[%emt 0:04:35]} 15. O-O {[%emt 0:00:50]} Bb7 {[%emt 0:05:48]} 16. Rf3 {[%emt 0:02:21]} Ne4 {[%emt 0:01:31]} 17. Nxe4 {[%emt 0:00:41]} dxe4 {[%emt 0:00:03]} 18. Nxd7 {[%emt 0:00:06]} Qxd7 {[%emt 0:00:57]} 19. Bf6 {[%emt 0:00:16]} Be7 {[%emt 0:01:02]} 20. Qxh7+ {[%emt 0:00:07]} 1-0

[Event "Portugal Open 2020"]
[Site "Lisbon"]
[Date "2020.01.26"]
[Round "2.33"]
[White "Ruiz Vinals, Matias"]
[Black "Plichta, Kamil"]
[Result "0-1"]
[ECO "E92"]
[WhiteElo "1964"]
[BlackElo "2353"]
[Annotator "NA"]
[PlyCount "62"]
[EventDate "2020.01.25"]
[EventType "swiss"]
[EventCountry "POR"]
[SourceTitle "playchess.com"]
[Source "ChessBase"]
[SourceQuality "1"]
[TimeControl "5400+30"]

1. Nf3 {[%emt 0:00:00]} Nf6 {[%emt 0:04:40]} 2. c4 {[%emt 0:00:00]} g6 {[%emt 0:00:09]} 3. Nc3 {[%emt 0:00:27]} Bg7 {[%emt 0:00:11]} 4. e4 {[%emt 0:00:23]} d6 {[%emt 0:00:06]} 5. d4 {[%emt 0:00:22]} O-O {[%emt 0:00:07]} 6. Be2 {[%emt 0:00:09]} e5 {[%emt 0:00:07]} 7. dxe5 {[%emt 0:00:58]} dxe5 {[%emt 0:00:07]} 8. Qxd8 {[%emt 0:00:14]} Rxd8 {[%emt 0:00:05]} 9. Bg5 {[%emt 0:00:11]} Rf8 {[%emt 0:00:07]} 10. Nd5 {[%emt 0:02:10]} Nxd5 {[%emt 0:00:06]} 11. cxd5 {[%emt 0:00:10]} c6 {[%emt 0:00:05]} 12. Bc4 {[%emt 0:01:27]} b5 {[%emt 0:00:06]} 13. Bb3 {[%emt 0:03:05]} a5 {[%emt 0:00:06]} 14. a4 {[%emt 0:02:28]} bxa4 {[%emt 0:00:05]} 15. Bxa4 {[%emt 0:04:24]} f6 {[%emt 0:00:33]} 16. Be3 {[%emt 0:01:49]} cxd5 {[%emt 0:00:07]} 17. exd5 {[%emt 0:00:12]} Bb7 {[%emt 0:04:09]} 18. O-O-O {[%emt 0:07:03]} e4 {[%emt 0:05:11]} 19. Ng1 {[%emt 0:01:23]} Na6 {[%emt 0:01:14]} 20. Ne2 {[%emt 0:05:31]} Nc5 {[%emt 0:05:53]} 21. Nc3 {[%emt 0:13:43]} Nd3+ {[%emt 0:05:55]} 22. Rxd3 {[%emt 0:10:14]} exd3 {[%emt 0:00:55]} 23. d6 {[%emt 0:00:48]} Rad8 {[%emt 0:05:22]} 24. d7 {[%emt 0:00:48]} Rf7 {[%emt 0:00:14]} 25. Kd2 {[%emt 0:11:13]} Bf8 {[%emt 0:04:04]} 26. Kxd3 {[%emt 0:00:53]} Bxg2 {[%emt 0:01:02]} 27. Ra1 {[%emt 0:00:22]} Bb4 {[%emt 0:02:24]} 28. Kc2 {[%emt 0:05:01]} Bh3 {[%emt 0:03:52]} 29. Bb3 {[%emt 0:09:49]} Bf5+ {[%emt 0:00:34]} 30. Kc1 {[%emt 0:00:20]} Rdxd7 {[%emt 0:00:32]} 31. Nd5 {[%emt 0:02:03]} Be6 {[%emt 0:00:43]} 0-1

[Event "Portugal Open 2020"]
[Site "Lisbon"]
[Date "2020.01.26"]
[Round "2.34"]
[White "Taboas Rodriguez, Daniel"]
[Black "Cordeiro, Joao Carlos Santos F"]
[Result "1-0"]
[ECO "D56"]
[WhiteElo "2348"]
[BlackElo "2005"]
[Annotator "NA"]
[PlyCount "103"]
[EventDate "2020.01.25"]
[EventType "swiss"]
[EventCountry "POR"]
[SourceTitle "playchess.com"]
[Source "ChessBase"]
[SourceQuality "1"]
[TimeControl "5400+30"]

1. d4 {[%emt 0:00:00]} Nf6 {[%emt 0:00:09]} 2. Nf3 {[%emt 0:00:00]} e6 {[%emt 0:00:45]} 3. c4 {[%emt 0:00:00]} d5 {[%emt 0:00:28]} 4. Bg5 {[%emt 0:00:00]} Be7 {[%emt 0:00:52]} 5. Nc3 {[%emt 0:00:00]} O-O {[%emt 0:00:36]} 6. e3 {[%emt 0:00:00]} h6 {[%emt 0:03:32]} 7. Bh4 {[%emt 0:00:04]} Ne4 {[%emt 0:02:06]} 8. Bxe7 {[%emt 0:00:13]} Qxe7 {[%emt 0:00:07]} 9. Rc1 {[%emt 0:00:04]} Nxc3 {[%emt 0:01:21]} 10. Rxc3 {[%emt 0:00:03]} c6 {[%emt 0:00:25]} 11. Bd3 {[%emt 0:00:07]} Nd7 {[%emt 0:00:42]} 12. O-O {[%emt 0:00:07]} dxc4 {[%emt 0:06:20]} 13. Bxc4 {[%emt 0:00:05]} e5 {[%emt 0:04:23]} 14. Bb3 {[%emt 0:00:08]} exd4 {[%emt 0:10:24]} 15. exd4 {[%emt 0:00:39]} Nb6 {[%emt 0:05:10]} 16. Re1 {[%emt 0:00:28]} Qf6 {[%emt 0:04:01]} 17. Ne5 {[%emt 0:00:27]} Nd5 {[%emt 0:09:38]} 18. Bxd5 {[%emt 0:10:14]} cxd5 {[%emt 0:00:05]} 19. Rf3 {[%emt 0:00:55]} Qd8 {[%emt 0:01:51]} 20. Qb3 {[%emt 0:05:22]} Be6 {[%emt 0:05:11]} 21. Rc3 {[%emt 0:05:53]} Qb6 {[%emt 0:02:10]} 22. Qxb6 {[%emt 0:01:26]} axb6 {[%emt 0:00:24]} 23. a3 {[%emt 0:00:45]} Rfc8 {[%emt 0:02:26]} 24. Rec1 {[%emt 0:00:41]} Kf8 {[%emt 0:05:55]} 25. f4 {[%emt 0:02:14]} Ke7 {[%emt 0:04:25]} 26. Kf2 {[%emt 0:00:12]} Rxc3 {[%emt 0:01:50]} 27. Rxc3 {[%emt 0:00:04]} Rc8 {[%emt 0:01:02]} 28. Rxc8 {[%emt 0:02:47]} Bxc8 {[%emt 0:00:04]} 29. Ke3 {[%emt 0:00:20]} f6 {[%emt 0:00:25]} 30. Nd3 {[%emt 0:00:20]} Kd6 {[%emt 0:00:37]} 31. Kd2 {[%emt 0:01:18]} g5 {[%emt 0:03:14]} 32. fxg5 {[%emt 0:03:52]} fxg5 {[%emt 0:00:07]} 33. Ne5 {[%emt 0:01:01]} Ke6 {[%emt 0:01:06]} 34. g4 {[%emt 0:00:14]} Kd6 {[%emt 0:10:45]} 35. Kc3 {[%emt 0:22:54]} Be6 {[%emt 0:00:20]} 36. Kb4 {[%emt 0:00:05]} Kc7 {[%emt 0:00:31]} 37. Kb5 {[%emt 0:00:06]} Bg8 {[%emt 0:01:37]} 38. a4 {[%emt 0:02:55]} Be6 {[%emt 0:00:17]} 39. b4 {[%emt 0:00:40]} Bg8 {[%emt 0:01:29]} 40. a5 {[%emt 0:00:08]} bxa5 {[%emt 0:00:15]} 41. bxa5 {[%emt 0:00:13]} Be6 {[%emt 0:00:50]} 42. Kc5 {[%emt 0:00:34]} Bg8 {[%emt 0:00:59]} 43. Nd3 {[%emt 0:06:51]} Be6 {[%emt 0:00:51]} 44. Nf2 {[%emt 0:00:09]} Bf7 {[%emt 0:01:34]} 45. Nd1 {[%emt 0:01:59]} Be6 {[%emt 0:01:11]} 46. Ne3 {[%emt 0:00:08]} Kb8 {[%emt 0:01:14]} 47. Kd6 {[%emt 0:01:58]} Bc8 {[%emt 0:00:33]} 48. h3 {[%emt 0:06:29]} Ka7 {[%emt 0:00:23]} 49. Nxd5 {[%emt 0:00:15]} Ka6 {[%emt 0:01:14]} 50. Nb6 {[%emt 0:02:30]} Bxg4 {[%emt 0:02:30]} 51. hxg4 {[%emt 0:00:26]} Kxa5 {[%emt 0:00:03]} 52. Kc5 {[%emt 0:00:36]} 1-0

[Event "Portugal Open 2020"]
[Site "Lisbon"]
[Date "2020.01.26"]
[Round "2.35"]
[White "Lekic, Dusan"]
[Black "Martins, Diogo Faria Oliveira"]
[Result "1/2-1/2"]
[ECO "B35"]
[WhiteElo "2343"]
[BlackElo "1998"]
[Annotator "NA"]
[PlyCount "46"]
[EventDate "2020.01.25"]
[EventType "swiss"]
[EventCountry "POR"]
[SourceTitle "playchess.com"]
[Source "ChessBase"]
[SourceQuality "1"]
[TimeControl "5400+30"]

1. Nf3 {[%emt 0:00:00]} g6 {[%emt 0:08:38]} 2. e4 {[%emt 0:00:06]} c5 {[%emt 0:00:04]} 3. d4 {[%emt 0:00:19]} cxd4 {[%emt 0:00:04]} 4. Nxd4 {[%emt 0:00:10]} Nc6 {[%emt 0:00:04]} 5. Nc3 {[%emt 0:00:59]} Bg7 {[%emt 0:00:06]} 6. Be3 {[%emt 0:00:27]} Nf6 {[%emt 0:00:06]} 7. Bc4 {[%emt 0:00:45]} Qa5 {[%emt 0:00:27]} 8. O-O {[%emt 0:00:41]} O-O {[%emt 0:00:08]} 9. Bb3 {[%emt 0:00:13]} d6 {[%emt 0:00:09]} 10. h3 {[%emt 0:00:22]} Bd7 {[%emt 0:00:08]} 11. Re1 {[%emt 0:00:48]} Rfc8 {[%emt 0:09:44]} 12. Qe2 {[%emt 0:09:33]} Nxd4 {[%emt 0:03:35]} 13. Bxd4 {[%emt 0:00:08]} Bc6 {[%emt 0:03:47]} 14. Rad1 {[%emt 0:06:15]} Nd7 {[%emt 0:05:37]} 15. Nd5 {[%emt 0:10:44]} Qd8 {[%emt 0:04:49]} 16. c3 {[%emt 0:11:01]} a5 {[%emt 0:07:56]} 17. a3 {[%emt 0:01:12]} e6 {[%emt 0:11:21]} 18. Bxg7 {[%emt 0:01:39]} Kxg7 {[%emt 0:00:39]} 19. Bc2 {[%emt 0:08:30]} Bxd5 {[%emt 0:01:05]} 20. exd5 {[%emt 0:00:09]} e5 {[%emt 0:00:13]} 21. Qd2 {[%emt 0:09:21]} a4 {[%emt 0:05:32]} 22. Re4 {[%emt 0:01:29]} Nc5 {[%emt 0:00:39]} 23. Rb4 {[%emt 0:00:08]} f5 {[%emt 0:04:32]} 1/2-1/2

[Event "Portugal Open 2020"]
[Site "Lisbon"]
[Date "2020.01.26"]
[Round "2.36"]
[White "Rocha, Sergio"]
[Black "Ruiz Bellon, Manuel"]
[Result "1-0"]
[ECO "E13"]
[WhiteElo "2343"]
[BlackElo "1985"]
[Annotator "NA"]
[PlyCount "69"]
[EventDate "2020.01.25"]
[EventType "swiss"]
[EventCountry "POR"]
[SourceTitle "playchess.com"]
[Source "ChessBase"]
[SourceQuality "1"]
[TimeControl "5400+30"]

1. d4 {[%emt 0:00:01]} Nf6 {[%emt 0:00:00]} 2. Nf3 {[%emt 0:00:57]} b6 {[%emt 0:00:58]} 3. c4 {[%emt 0:00:16]} e6 {[%emt 0:00:09]} 4. Nc3 {[%emt 0:00:36]} Bb4 {[%emt 0:00:10]} 5. Bg5 {[%emt 0:01:04]} h6 {[%emt 0:00:08]} 6. Bh4 {[%emt 0:00:05]} Bb7 {[%emt 0:03:30]} 7. e3 {[%emt 0:00:32]} g5 {[%emt 0:04:37]} 8. Bg3 {[%emt 0:00:31]} Ne4 {[%emt 0:00:30]} 9. Qc2 {[%emt 0:00:33]} d6 {[%emt 0:02:58]} 10. Bd3 {[%emt 0:01:36]} Bxc3+ {[%emt 0:02:20]} 11. bxc3 {[%emt 0:00:07]} Nxg3 {[%emt 0:01:21]} 12. hxg3 {[%emt 0:00:10]} Nc6 {[%emt 0:19:11]} 13. Rb1 {[%emt 0:03:53]} Qe7 {[%emt 0:01:00]} 14. Qa4 {[%emt 0:04:14]} g4 {[%emt 0:02:17]} 15. Nh2 {[%emt 0:11:44]} O-O-O {[%emt 0:00:52]} 16. Be4 {[%emt 0:00:27]} Qd7 {[%emt 0:04:12]} 17. Nxg4 {[%emt 0:01:28]} d5 {[%emt 0:07:29]} 18. Bf3 {[%emt 0:04:04]} f5 {[%emt 0:01:54]} 19. cxd5 {[%emt 0:01:24]} exd5 {[%emt 0:02:07]} 20. Nf6 {[%emt 0:00:20]} Qf7 {[%emt 0:00:20]} 21. Nh5 {[%emt 0:00:17]} Na5 {[%emt 0:01:12]} 22. Nf4 {[%emt 0:01:48]} Bc6 {[%emt 0:07:06]} 23. Qc2 {[%emt 0:05:25]} Nc4 {[%emt 0:00:55]} 24. Rb4 {[%emt 0:03:04]} Qd7 {[%emt 0:03:03]} 25. Rh5 {[%emt 0:03:46]} a5 {[%emt 0:01:07]} 26. Rb3 {[%emt 0:00:40]} a4 {[%emt 0:02:28]} 27. Rb4 {[%emt 0:00:14]} Na3 {[%emt 0:00:27]} 28. Qc1 {[%emt 0:04:22]} Nc4 {[%emt 0:00:18]} 29. Kf1 {[%emt 0:01:50]} Rhg8 {[%emt 0:02:20]} 30. Kg1 {[%emt 0:02:07]} Nd6 {[%emt 0:01:24]} 31. Nxd5 {[%emt 0:01:58]} Qf7 {[%emt 0:04:10]} 32. Ne7+ {[%emt 0:02:18]} Qxe7 {[%emt 0:03:47]} 33. Bxc6 {[%emt 0:00:09]} Nb7 {[%emt 0:00:22]} 34. Rxa4 {[%emt 0:00:26]} Na5 {[%emt 0:00:41]} 35. Rxa5 {[%emt 0:02:15]} 1-0